[Event "Lueneburg Open-A 2019"]
[Site "Lueneburg"]
[Date "2019.08.03"]
[Round "1.14"]
[White "Moysich, Dirk"]
[Black "Kolbus, Dietmar"]
[Result "0-1"]
[ECO "A16"]
[WhiteElo "1871"]
[BlackElo "2281"]
[Annotator "NA"]
[PlyCount "48"]
[EventDate "2019.08.03"]
[EventType "swiss"]
[EventCountry "GER"]
[SourceTitle "playchess.com"]
[Source "ChessBase"]
[SourceQuality "1"]
[TimeControl "40/5400+30:1800+30"]

1. Nf3 {[%emt 0:00:00]} Nf6 {[%emt 0:00:00]} 2. g3 {[%emt 0:00:03]} g6 {[%emt 0:00:11]} 3. Bg2 {[%emt 0:00:22]} Bg7 {[%emt 0:00:07]} 4. O-O {[%emt 0:00:30]} O-O {[%emt 0:00:07]} 5. c4 {[%emt 0:03:03]} d5 {[%emt 0:00:10]} 6. cxd5 {[%emt 0:01:06]} Nxd5 {[%emt 0:00:03]} 7. Nc3 {[%emt 0:00:12]} Nb6 {[%emt 0:00:12]} 8. d3 {[%emt 0:02:58]} Nc6 {[%emt 0:00:10]} 9. Be3 {[%emt 0:13:46]} h6 {[%emt 0:00:06]} 10. Qd2 {[%emt 0:02:43]} Kh7 {[%emt 0:00:06]} 11. Rac1 {[%emt 0:05:47]} e5 {[%emt 0:00:07]} 12. Bc5 {[%emt 0:05:45]} Re8 {[%emt 0:00:06]} 13. Rfd1 {[%emt 0:06:59]} Be6 {[%emt 0:03:04]} 14. Ba3 {[%emt 0:03:47]} f5 {[%emt 0:09:03]} 15. e3 {[%emt 0:08:50]} Qd7 {[%emt 0:00:39]} 16. Ne1 {[%emt 0:07:43]} Nd8 {[%emt 0:04:50]} 17. b3 {[%emt 0:01:21]} c6 {[%emt 0:00:28]} 18. Ne2 {[%emt 0:01:39]} Nf7 {[%emt 0:01:15]} 19. Bb2 {[%emt 0:03:30]} Rad8 {[%emt 0:01:06]} 20. Qc2 {[%emt 0:07:31]} Qe7 {[%emt 0:03:24]} 21. a3 {[%emt 0:03:36]} Nd6 {[%emt 0:03:06]} 22. b4 {[%emt 0:03:06]} Qf7 {[%emt 0:02:08]} 23. Rd2 {[%emt 0:02:09]} Bb3 {[%emt 0:00:30]} 24. Qb1 {[%emt 0:01:40]} Ndc4 {[%emt 1:11:02]} 0-1

[Event "Lueneburg Open-A 2019"]
[Site "Lueneburg"]
[Date "2019.08.03"]
[Round "1.15"]
[White "Buchenau, Frank"]
[Black "Serreck, Uwe"]
[Result "1-0"]
[ECO "B06"]
[WhiteElo "2294"]
[BlackElo "1869"]
[Annotator "NA"]
[PlyCount "61"]
[EventDate "2019.08.03"]
[EventType "swiss"]
[EventCountry "GER"]
[SourceTitle "playchess.com"]
[Source "ChessBase"]
[SourceQuality "1"]
[TimeControl "40/5400+30:1800+30"]

1. e4 {[%emt 0:15:24]} g6 {[%emt 0:00:00]} 2. d4 {[%emt 0:00:14]} Bg7 {[%emt 0:00:19]} 3. Nc3 {[%emt 0:04:07]} d6 {[%emt 0:00:21]} 4. Nf3 {[%emt 0:00:07]} a6 {[%emt 0:00:18]} 5. Bc4 {[%emt 0:00:14]} e6 {[%emt 0:07:08]} 6. a4 {[%emt 0:00:12]} b6 {[%emt 0:00:04]} 7. O-O {[%emt 0:00:08]} Nd7 {[%emt 0:00:28]} 8. Bf4 {[%emt 0:00:43]} Ne7 {[%emt 0:00:29]} 9. Re1 {[%emt 0:00:33]} Bb7 {[%emt 0:02:46]} 10. h3 {[%emt 0:01:23]} h6 {[%emt 0:00:05]} 11. Qd2 {[%emt 0:00:51]} g5 {[%emt 0:04:55]} 12. Bg3 {[%emt 0:01:39]} Ng6 {[%emt 0:13:55]} 13. Rad1 {[%emt 0:00:59]} Qe7 {[%emt 0:08:11]} 14. Qe3 {[%emt 0:06:09]} O-O {[%emt 0:04:51]} 15. Bd3 {[%emt 0:08:28]} Rae8 {[%emt 0:13:48]} 16. Qe2 {[%emt 0:02:46]} a5 {[%emt 0:05:24]} 17. Nb5 {[%emt 0:04:06]} Nf6 {[%emt 0:16:30]} 18. e5 {[%emt 0:00:51]} dxe5 {[%emt 0:00:51]} 19. Bxg6 {[%emt 0:03:49]} Bxf3 {[%emt 0:00:27]} 20. Qxf3 {[%emt 0:03:13]} fxg6 {[%emt 0:00:07]} 21. Qc6 {[%emt 0:08:12]} Nh5 {[%emt 0:11:57]} 22. Nxc7 {[%emt 0:02:44]} Rc8 {[%emt 0:03:02]} 23. Qxe6+ {[%emt 0:00:21]} Qf7 {[%emt 0:01:04]} 24. Qxf7+ {[%emt 0:01:53]} Rxf7 {[%emt 0:00:18]} 25. Nd5 {[%emt 0:09:21]} Nxg3 {[%emt 0:00:02]} 26. fxg3 {[%emt 0:00:11]} Rxc2 {[%emt 0:01:07]} 27. dxe5 {[%emt 0:01:12]} Rff2 {[%emt 0:01:45]} 28. Ne3 {[%emt 0:00:07]} Rxb2 {[%emt 0:01:22]} 29. e6 {[%emt 0:00:21]} Bc3 {[%emt 0:00:55]} 30. Rd8+ {[%emt 0:02:06]} Kg7 {[%emt 0:00:01]} 31. e7 {[%emt 0:00:26]} 1-0

[Event "Lueneburg Open-A 2019"]
[Site "Lueneburg"]
[Date "2019.08.03"]
[Round "1.16"]
[White "Doederlein, Etienne"]
[Black "Weishaeutel, Moritz"]
[Result "1/2-1/2"]
[ECO "C00"]
[WhiteElo "1868"]
[BlackElo "2276"]
[Annotator "NA"]
[PlyCount "100"]
[EventDate "2019.08.03"]
[EventType "swiss"]
[EventCountry "GER"]
[SourceTitle "playchess.com"]
[Source "ChessBase"]
[SourceQuality "1"]
[TimeControl "40/5400+30:1800+30"]

1. Nf3 {[%emt 0:00:00]} c5 {[%emt 0:00:00]} 2. g3 {[%emt 0:00:00]} d5 {[%emt 0:00:00]} 3. Bg2 {[%emt 0:00:00]} Nf6 {[%emt 0:00:00]} 4. O-O {[%emt 0:00:01]} e6 {[%emt 0:00:01]} 5. d3 {[%emt 0:00:19]} Nc6 {[%emt 0:00:12]} 6. Nbd2 {[%emt 0:00:08]} Be7 {[%emt 0:00:11]} 7. e4 {[%emt 0:01:18]} O-O {[%emt 0:00:07]} 8. Re1 {[%emt 0:00:12]} b5 {[%emt 0:00:28]} 9. e5 {[%emt 0:00:31]} Nd7 {[%emt 0:00:04]} 10. Nf1 {[%emt 0:00:10]} Bb7 {[%emt 0:00:05]} 11. h4 {[%emt 0:01:15]} Qc7 {[%emt 0:00:41]} 12. Bf4 {[%emt 0:00:06]} Rfc8 {[%emt 0:00:10]} 13. N1h2 {[%emt 0:00:26]} Qd8 {[%emt 0:00:11]} 14. h5 {[%emt 0:00:56]} h6 {[%emt 0:00:08]} 15. Ng4 {[%emt 0:01:05]} Bf8 {[%emt 0:00:06]} 16. Qd2 {[%emt 0:01:09]} a5 {[%emt 0:02:04]} 17. Bxh6 {[%emt 0:05:32]} gxh6 {[%emt 0:00:06]} 18. Nxh6+ {[%emt 0:00:05]} Bxh6 {[%emt 0:01:07]} 19. Qxh6 {[%emt 0:00:06]} Qf8 {[%emt 0:03:59]} 20. Qf4 {[%emt 0:07:53]} Ne7 {[%emt 0:11:37]} 21. Bh3 {[%emt 0:04:21]} d4 {[%emt 0:06:35]} 22. Ng5 {[%emt 0:01:24]} Bd5 {[%emt 0:02:16]} 23. Ne4 {[%emt 0:10:22]} Bxe4 {[%emt 0:01:38]} 24. Rxe4 {[%emt 0:05:10]} Qg7 {[%emt 0:09:21]} 25. Rae1 {[%emt 0:15:14]} Nd5 {[%emt 0:05:42]} 26. Qd2 {[%emt 0:05:45]} Kh8 {[%emt 0:01:08]} 27. Rg4 {[%emt 0:03:58]} Qh7 {[%emt 0:01:59]} 28. Bg2 {[%emt 0:00:32]} Rg8 {[%emt 0:04:55]} 29. Be4 {[%emt 0:00:57]} Qxh5 {[%emt 0:01:09]} 30. Rxg8+ {[%emt 0:01:28]} Kxg8 {[%emt 0:04:41]} 31. Kg2 {[%emt 0:00:26]} Kf8 {[%emt 0:04:08]} 32. Bf3 {[%emt 0:06:19]} Qg6 {[%emt 0:02:45]} 33. Be4 {[%emt 0:00:58]} Qg7 {[%emt 0:03:06]} 34. Bxd5 {[%emt 0:04:49]} exd5 {[%emt 0:00:01]} 35. e6 {[%emt 0:00:08]} fxe6 {[%emt 0:01:34]} 36. Rxe6 {[%emt 0:01:35]} Kg8 {[%emt 0:14:10]} 37. Qe2 {[%emt 0:01:40]} Rf8 {[%emt 0:00:32]} 38. Re7 {[%emt 0:22:42]} Rf7 39. Rxd7 {[%emt 0:00:00]} Rxf2+ {[%emt 0:11:55]} 40. Qxf2 {[%emt 0:00:00]} Qxd7 {[%emt 0:00:01]} 41. Qf6 {[%emt 0:17:37]} a4 {[%emt 0:31:41]} 42. Qg6+ {[%emt 0:01:43]} Kf8 {[%emt 0:00:52]} 43. Qf6+ {[%emt 0:00:27]} Kg8 {[%emt 0:04:58]} 44. Kf3 {[%emt 0:02:36]} b4 {[%emt 0:00:00]} 45. g4 {[%emt 0:00:00]} Qe8 {[%emt 0:00:00]} 46. Qg5+ {[%emt 0:00:00]} Kf8 {[%emt 0:00:00]} 47. Qf5+ {[%emt 0:00:00]} Kg7 {[%emt 0:00:00]} 48. Qg5+ {[%emt 0:00:00]} Kf8 {[%emt 0:00:00]} 49. Qf5+ {[%emt 0:00:00]} Kg7 {[%emt 0:00:00]} 50. Qg5+ {[%emt 0:00:00]} Kf8 {[%emt 0:08:36]} 1/2-1/2

[Event "Lueneburg Open-A 2019"]
[Site "Lueneburg"]
[Date "2019.08.03"]
[Round "1.17"]
[White "Poeck, Ole"]
[Black "Rothenberg, Jannik"]
[Result "1-0"]
[ECO "E01"]
[WhiteElo "2259"]
[BlackElo "1859"]
[Annotator "NA"]
[PlyCount "117"]
[EventDate "2019.08.03"]
[EventType "swiss"]
[EventCountry "GER"]
[SourceTitle "playchess.com"]
[Source "ChessBase"]
[SourceQuality "1"]
[TimeControl "40/5400+30:1800+30"]

1. Nf3 {[%emt 0:00:00]} d5 {[%emt 0:00:23]} 2. g3 {[%emt 0:00:00]} c5 {[%emt 0:00:35]} 3. Bg2 {[%emt 0:00:00]} Nc6 {[%emt 0:01:03]} 4. d4 {[%emt 0:00:00]} e6 {[%emt 0:01:51]} 5. O-O {[%emt 0:00:03]} Nf6 {[%emt 0:00:40]} 6. c4 {[%emt 0:00:03]} cxd4 {[%emt 0:02:45]} 7. Nxd4 {[%emt 0:00:15]} Bc5 {[%emt 0:02:03]} 8. Nb3 {[%emt 0:00:01]} Be7 {[%emt 0:01:17]} 9. cxd5 {[%emt 0:04:39]} exd5 {[%emt 0:05:43]} 10. Nc3 {[%emt 0:00:19]} Be6 {[%emt 0:03:26]} 11. Nd4 {[%emt 0:08:10]} O-O {[%emt 0:02:43]} 12. Bf4 {[%emt 0:12:13]} Qb6 {[%emt 0:08:23]} 13. Nxe6 {[%emt 0:09:16]} fxe6 {[%emt 0:00:24]} 14. Bh3 {[%emt 0:04:52]} Kh8 {[%emt 0:25:43]} 15. Na4 {[%emt 0:03:07]} Qa6 {[%emt 0:05:44]} 16. Bxe6 {[%emt 0:00:49]} Rae8 {[%emt 0:03:38]} 17. Bh3 {[%emt 0:06:11]} b5 {[%emt 0:01:10]} 18. Nc3 {[%emt 0:00:24]} d4 {[%emt 0:00:34]} 19. Nb1 {[%emt 0:00:16]} Nd5 {[%emt 0:02:20]} 20. Bd2 {[%emt 0:01:20]} Bf6 {[%emt 0:05:02]} 21. Qb3 {[%emt 0:03:18]} Nce7 {[%emt 0:08:28]} 22. Na3 {[%emt 0:01:21]} Nb6 {[%emt 0:07:38]} 23. Qxb5 {[%emt 0:01:35]} Qxb5 {[%emt 0:00:30]} 24. Nxb5 {[%emt 0:00:03]} Ned5 {[%emt 0:01:05]} 25. Rae1 {[%emt 0:02:46]} Nc4 {[%emt 0:00:52]} 26. Bc1 {[%emt 0:00:10]} a6 {[%emt 0:00:43]} 27. Na7 {[%emt 0:14:15]} Rf7 {[%emt 0:02:50]} 28. Nc8 {[%emt 0:01:59]} Be5 {[%emt 0:00:08]} 29. b3 {[%emt 0:00:30]} Nd6 {[%emt 0:01:18]} 30. Nxd6 {[%emt 0:01:33]} Bxd6 {[%emt 0:00:02]} 31. Bg4 {[%emt 0:06:39]} Nc3 {[%emt 0:04:54]} 32. Bb2 {[%emt 0:02:24]} Nxa2 {[%emt 0:01:03]} 33. Bh5 {[%emt 0:01:23]} g6 {[%emt 0:00:18]} 34. Bxd4+ {[%emt 0:00:01]} Be5 {[%emt 0:00:33]} 35. Bxe5+ {[%emt 0:00:12]} Rxe5 {[%emt 0:00:01]} 36. Bf3 {[%emt 0:00:16]} Nc3 {[%emt 0:00:31]} 37. Kg2 {[%emt 0:00:02]} Rfe7 {[%emt 0:01:37]} 38. e3 {[%emt 0:00:54]} Rb5 {[%emt 0:00:10]} 39. Ra1 {[%emt 0:00:10]} Rxb3 {[%emt 0:00:37]} 40. Rxa6 {[%emt 0:00:02]} Rb2 {[%emt 0:00:40]} 41. Rc1 {[%emt 0:33:31]} Rxe3 {[%emt 0:02:01]} 42. Ra3 {[%emt 0:00:00]} Rxf2+ {[%emt 0:01:57]} 43. Kxf2 {[%emt 0:00:00]} Nd1+ {[%emt 0:00:09]} 44. Rxd1 {[%emt 0:00:00]} Rxa3 {[%emt 0:00:06]} 45. Rd7 {[%emt 0:00:00]} Ra2+ {[%emt 0:00:28]} 46. Be2 {[%emt 0:00:00]} Ra3 {[%emt 0:00:48]} 47. Re7 {[%emt 0:00:00]} Rb3 {[%emt 0:00:18]} 48. h4 {[%emt 0:00:00]} Ra3 {[%emt 0:00:37]} 49. Bc4 {[%emt 0:00:00]} Rc3 {[%emt 0:00:09]} 50. Rc7 {[%emt 0:00:00]} Ra3 {[%emt 0:00:43]} 51. Kg2 {[%emt 0:00:00]} Ra1 {[%emt 0:00:32]} 52. Kf3 {[%emt 0:00:00]} Rc1 {[%emt 0:00:52]} 53. Kf4 {[%emt 0:00:00]} Ra1 {[%emt 0:00:28]} 54. Ke5 {[%emt 0:00:00]} Ra5+ {[%emt 0:00:53]} 55. Bd5 {[%emt 0:00:00]} Ra6 {[%emt 0:00:45]} 56. Be6 {[%emt 0:00:00]} Ra1 {[%emt 0:00:39]} 57. g4 {[%emt 0:00:00]} h5 {[%emt 0:00:49]} 58. Kf6 {[%emt 0:00:00]} hxg4 {[%emt 0:00:19]} 59. Kxg6 {[%emt 0:00:00]} 1-0

[Event "Lueneburg Open-A 2019"]
[Site "Lueneburg"]
[Date "2019.08.03"]
[Round "1.18"]
[White "Wirries, Frank-Michael"]
[Black "Lubbe, Melanie"]
[Result "0-1"]
[ECO "B59"]
[WhiteElo "1858"]
[BlackElo "2258"]
[Annotator "NA"]
[PlyCount "70"]
[EventDate "2019.08.03"]
[EventType "swiss"]
[EventCountry "GER"]
[SourceTitle "playchess.com"]
[Source "ChessBase"]
[SourceQuality "1"]
[TimeControl "40/5400+30:1800+30"]

1. e4 {[%emt 0:00:00]} c5 {[%emt 0:00:00]} 2. Nf3 {[%emt 0:00:00]} d6 {[%emt 0:00:00]} 3. d4 {[%emt 0:00:00]} cxd4 {[%emt 0:00:00]} 4. Nxd4 {[%emt 0:00:03]} Nf6 {[%emt 0:00:00]} 5. Nc3 {[%emt 0:00:09]} Nc6 {[%emt 0:00:00]} 6. Be2 {[%emt 0:03:16]} e5 {[%emt 0:00:08]} 7. Nb3 {[%emt 0:02:21]} Be7 {[%emt 0:01:33]} 8. O-O {[%emt 0:00:43]} O-O {[%emt 0:00:05]} 9. Be3 {[%emt 0:05:12]} a5 {[%emt 0:04:31]} 10. a4 {[%emt 0:07:00]} Be6 {[%emt 0:00:59]} 11. Bf3 {[%emt 0:02:18]} Nb4 {[%emt 0:01:16]} 12. Qe2 {[%emt 0:05:56]} Qc7 {[%emt 0:03:18]} 13. Rfd1 {[%emt 0:03:14]} Rfd8 {[%emt 0:00:50]} 14. Qb5 {[%emt 0:09:35]} Ra6 {[%emt 0:05:20]} 15. Nd5 {[%emt 0:04:27]} Nfxd5 {[%emt 0:02:10]} 16. exd5 {[%emt 0:00:25]} Bd7 {[%emt 0:01:17]} 17. Qf1 {[%emt 0:11:54]} Qxc2 {[%emt 0:09:42]} 18. Nd2 {[%emt 0:00:34]} Qg6 {[%emt 0:01:27]} 19. Be2 {[%emt 0:07:33]} Raa8 {[%emt 0:03:52]} 20. Bb6 {[%emt 0:00:16]} Rdc8 {[%emt 0:03:44]} 21. Nc4 {[%emt 0:00:54]} Bf5 {[%emt 0:08:05]} 22. Ra3 {[%emt 0:11:29]} Bd8 {[%emt 0:06:07]} 23. Rg3 {[%emt 0:05:45]} Qf6 {[%emt 0:02:19]} 24. Rf3 {[%emt 0:01:13]} Rxc4 {[%emt 0:08:49]} 25. Bxd8 {[%emt 0:00:26]} Qxd8 {[%emt 0:00:13]} 26. Bxc4 {[%emt 0:00:43]} Bg4 {[%emt 0:00:08]} 27. Rg3 {[%emt 0:02:08]} Bxd1 {[%emt 0:00:26]} 28. Qxd1 {[%emt 0:00:05]} f5 {[%emt 0:04:22]} 29. Qh5 {[%emt 0:02:09]} Qf6 {[%emt 0:00:35]} 30. Rh3 {[%emt 0:03:51]} Qg6 {[%emt 0:05:54]} 31. Qe2 {[%emt 0:01:30]} Rc8 {[%emt 0:01:58]} 32. Rc3 {[%emt 0:01:41]} Qg4 {[%emt 0:09:46]} 33. Qxg4 {[%emt 0:02:27]} fxg4 {[%emt 0:00:04]} 34. Be2 {[%emt 0:00:31]} Rxc3 {[%emt 0:00:37]} 35. bxc3 {[%emt 0:00:07]} Na2 {[%emt 0:00:52]} 0-1

[Event "Lueneburg Open-A 2019"]
[Site "Lueneburg"]
[Date "2019.08.03"]
[Round "1.19"]
[White "Colbow, Collin"]
[Black "Buchaeckert, Juergen"]
[Result "1-0"]
[ECO "B33"]
[WhiteElo "2167"]
[BlackElo "1839"]
[Annotator "NA"]
[PlyCount "75"]
[EventDate "2019.08.03"]
[EventType "swiss"]
[EventCountry "GER"]
[SourceTitle "playchess.com"]
[Source "ChessBase"]
[SourceQuality "1"]
[TimeControl "40/5400+30:1800+30"]

1. e4 {[%emt 0:00:00]} c5 {[%emt 0:00:00]} 2. Nf3 {[%emt 0:00:00]} Nc6 {[%emt 0:00:13]} 3. d4 {[%emt 0:00:00]} cxd4 {[%emt 0:00:06]} 4. Nxd4 {[%emt 0:00:00]} Nf6 {[%emt 0:00:12]} 5. Nc3 {[%emt 0:00:00]} e5 {[%emt 0:00:03]} 6. Ndb5 {[%emt 0:00:24]} d6 {[%emt 0:00:13]} 7. Bg5 {[%emt 0:02:16]} a6 {[%emt 0:00:30]} 8. Na3 {[%emt 0:00:07]} b5 {[%emt 0:00:06]} 9. Nd5 {[%emt 0:00:15]} Be7 {[%emt 0:00:07]} 10. Bxf6 {[%emt 0:00:15]} Bxf6 {[%emt 0:00:06]} 11. c3 {[%emt 0:00:12]} Rb8 {[%emt 0:01:52]} 12. Nc2 {[%emt 0:02:35]} Bg5 {[%emt 0:00:19]} 13. Be2 {[%emt 0:02:05]} O-O {[%emt 0:04:49]} 14. O-O {[%emt 0:02:12]} a5 {[%emt 0:04:27]} 15. Bg4 {[%emt 0:06:06]} Be6 {[%emt 0:05:09]} 16. b4 {[%emt 0:16:38]} axb4 {[%emt 0:04:26]} 17. cxb4 {[%emt 0:02:57]} Ne7 {[%emt 0:05:59]} 18. Nce3 {[%emt 0:15:55]} Bxe3 {[%emt 0:02:35]} 19. Nxe3 {[%emt 0:01:38]} d5 {[%emt 0:14:05]} 20. exd5 {[%emt 0:07:29]} Bxd5 {[%emt 0:11:57]} 21. Nxd5 {[%emt 0:00:37]} Nxd5 {[%emt 0:01:04]} 22. Qb3 {[%emt 0:02:34]} Nf6 {[%emt 0:03:13]} 23. Be2 {[%emt 0:02:20]} Qb6 {[%emt 0:02:39]} 24. a4 {[%emt 0:04:17]} bxa4 {[%emt 0:01:02]} 25. Rxa4 {[%emt 0:00:06]} Ne4 {[%emt 0:06:33]} 26. Qd3 {[%emt 0:01:51]} Nf6 {[%emt 0:07:05]} 27. b5 {[%emt 0:01:37]} Rfd8 {[%emt 0:03:39]} 28. Qc3 {[%emt 0:05:33]} Nd7 {[%emt 0:06:42]} 29. Rc1 {[%emt 0:04:08]} Qd6 {[%emt 0:03:36]} 30. Ra7 {[%emt 0:04:21]} Qb6 {[%emt 0:06:12]} 31. Rc7 {[%emt 0:02:38]} Rb7 {[%emt 0:01:57]} 32. Rc6 {[%emt 0:04:49]} Qa7 {[%emt 0:01:13]} 33. Rd1 {[%emt 0:01:36]} Qb8 {[%emt 0:01:37]} 34. Rcd6 {[%emt 0:01:57]} f6 {[%emt 0:02:23]} 35. Bg4 {[%emt 0:01:26]} Rc7 {[%emt 0:00:40]} 36. Qb3+ {[%emt 0:00:22]} Kh8 {[%emt 0:00:26]} 37. Rxd7 {[%emt 0:01:13]} Rdxd7 {[%emt 0:00:18]} 38. Bxd7 {[%emt 0:00:19]} 1-0

[Event "Lueneburg Open-A 2019"]
[Site "Lueneburg"]
[Date "2019.08.03"]
[Round "1.20"]
[White "Britsch, Benjamin"]
[Black "Mueer, Sebastian"]
[Result "0-1"]
[ECO "A45"]
[WhiteElo "1835"]
[BlackElo "2198"]
[Annotator "NA"]
[PlyCount "38"]
[EventDate "2019.08.03"]
[EventType "swiss"]
[EventCountry "GER"]
[SourceTitle "playchess.com"]
[Source "ChessBase"]
[SourceQuality "1"]
[TimeControl "40/5400+30:1800+30"]

1. d4 {[%emt 0:00:00]} Nf6 {[%emt 0:09:30]} 2. Bg5 {[%emt 0:00:00]} c5 {[%emt 0:00:30]} 3. Bxf6 {[%emt 0:00:00]} gxf6 {[%emt 0:00:14]} 4. dxc5 {[%emt 0:00:00]} Qa5+ {[%emt 0:03:14]} 5. Nc3 {[%emt 0:00:00]} Nc6 {[%emt 0:02:17]} 6. e3 {[%emt 0:01:58]} e6 {[%emt 0:03:53]} 7. a3 {[%emt 0:00:08]} Qxc5 {[%emt 0:01:34]} 8. Nf3 {[%emt 0:04:00]} d5 {[%emt 0:09:23]} 9. e4 {[%emt 0:02:27]} dxe4 {[%emt 0:05:38]} 10. Nxe4 {[%emt 0:00:37]} Qe7 {[%emt 0:00:44]} 11. c4 {[%emt 0:03:24]} f5 {[%emt 0:01:58]} 12. Nc3 {[%emt 0:04:06]} Bg7 {[%emt 0:01:46]} 13. Rc1 {[%emt 0:03:27]} O-O {[%emt 0:01:21]} 14. b4 {[%emt 0:00:39]} a5 {[%emt 0:09:38]} 15. Qa4 {[%emt 0:01:26]} Bxc3+ {[%emt 0:06:54]} 16. Rxc3 {[%emt 0:00:05]} axb4 {[%emt 0:00:13]} 17. Qxa8 {[%emt 0:00:51]} bxc3 {[%emt 0:00:08]} 18. Bd3 {[%emt 0:05:08]} e5 {[%emt 0:04:27]} 19. Bb1 {[%emt 0:00:06]} e4 {[%emt 0:00:33]} 0-1

[Event "Lueneburg Open-A 2019"]
[Site "Lueneburg"]
[Date "2019.08.03"]
[Round "1.22"]
[White "Chmielewski, Axel"]
[Black "Ramme, Christoph"]
[Result "0-1"]
[ECO "E05"]
[WhiteElo "1811"]
[BlackElo "2154"]
[Annotator "NA"]
[PlyCount "88"]
[EventDate "2019.08.03"]
[EventType "swiss"]
[EventCountry "GER"]
[SourceTitle "playchess.com"]
[Source "ChessBase"]
[SourceQuality "1"]
[TimeControl "40/5400+30:1800+30"]

1. d4 {[%emt 0:00:00]} Nf6 {[%emt 0:00:00]} 2. c4 {[%emt 0:00:00]} e6 {[%emt 0:00:00]} 3. Nf3 {[%emt 0:00:19]} d5 {[%emt 0:00:11]} 4. g3 {[%emt 0:00:59]} Be7 {[%emt 0:00:26]} 5. Bg2 {[%emt 0:00:17]} O-O {[%emt 0:00:09]} 6. O-O {[%emt 0:00:25]} dxc4 {[%emt 0:00:22]} 7. a4 {[%emt 0:00:09]} Bd7 {[%emt 0:01:07]} 8. Ne5 {[%emt 0:01:32]} Bc6 {[%emt 0:01:11]} 9. Nxc6 {[%emt 0:05:58]} Nxc6 {[%emt 0:00:35]} 10. Bxc6 {[%emt 0:00:59]} bxc6 {[%emt 0:00:08]} 11. e3 {[%emt 0:03:15]} Rb8 {[%emt 0:08:16]} 12. Nd2 {[%emt 0:01:31]} Qd5 {[%emt 0:03:34]} 13. Qe2 {[%emt 0:05:40]} Rb4 {[%emt 0:02:23]} 14. Ra3 {[%emt 0:14:50]} Rd8 {[%emt 0:10:30]} 15. Rc3 {[%emt 0:09:55]} Rxa4 {[%emt 0:02:52]} 16. Nxc4 {[%emt 0:06:25]} c5 {[%emt 0:17:11]} 17. b3 {[%emt 0:01:36]} Ra1 {[%emt 0:07:12]} 18. Qb2 {[%emt 0:02:19]} Ra6 {[%emt 0:00:38]} 19. Rd3 {[%emt 0:11:25]} h5 {[%emt 0:09:19]} 20. f3 {[%emt 0:00:44]} cxd4 {[%emt 0:01:47]} 21. Rxd4 {[%emt 0:01:33]} Qa8 {[%emt 0:01:42]} 22. Qe2 {[%emt 0:07:04]} Rxd4 {[%emt 0:03:49]} 23. exd4 {[%emt 0:00:14]} Qb7 {[%emt 0:02:17]} 24. Qd3 {[%emt 0:02:21]} Ra2 {[%emt 0:02:30]} 25. Be3 {[%emt 0:05:37]} Qd5 {[%emt 0:03:26]} 26. Qb1 {[%emt 0:01:32]} Ra6 {[%emt 0:01:08]} 27. Kf2 {[%emt 0:03:16]} Ne8 {[%emt 0:06:10]} 28. Rd1 {[%emt 0:01:42]} Nd6 {[%emt 0:01:27]} 29. Nxd6 {[%emt 0:04:55]} Bxd6 {[%emt 0:00:42]} 30. Qd3 {[%emt 0:00:04]} Ra3 {[%emt 0:02:10]} 31. Qc4 {[%emt 0:04:39]} Rxb3 {[%emt 0:01:16]} 32. Qxd5 {[%emt 0:00:15]} exd5 {[%emt 0:00:07]} 33. Ra1 {[%emt 0:00:23]} Ra3 {[%emt 0:00:56]} 34. Rxa3 {[%emt 0:00:01]} Bxa3 {[%emt 0:00:07]} 35. Bf4 {[%emt 0:00:11]} c6 {[%emt 0:01:12]} 36. Bb8 {[%emt 0:00:22]} a5 {[%emt 0:01:27]} 37. Ke2 {[%emt 0:00:17]} Kf8 {[%emt 0:00:29]} 38. Kd3 {[%emt 0:00:30]} Bb4 {[%emt 0:00:37]} 39. Kc2 {[%emt 0:00:50]} a4 {[%emt 0:00:43]} 40. Be5 {[%emt 0:02:08]} f6 {[%emt 0:00:26]} 41. Bf4 {[%emt 0:30:15]} Ke7 {[%emt 0:30:23]} 42. Bc1 {[%emt 0:01:13]} Bd6 {[%emt 0:02:54]} 43. f4 {[%emt 0:01:11]} Ke6 {[%emt 0:00:40]} 44. Kd3 {[%emt 0:00:54]} Kf5 {[%emt 0:01:25]} 0-1

[Event "Lueneburg Open-A 2019"]
[Site "Lueneburg"]
[Date "2019.08.03"]
[Round "1.23"]
[White "Haas, Frank-Martin"]
[Black "Rudolph, Jens-Erik"]
[Result "1-0"]
[ECO "C41"]
[WhiteElo "2152"]
[BlackElo "1805"]
[Annotator "NA"]
[PlyCount "55"]
[EventDate "2019.08.03"]
[EventType "swiss"]
[EventCountry "GER"]
[SourceTitle "playchess.com"]
[Source "ChessBase"]
[SourceQuality "1"]
[TimeControl "40/5400+30:1800+30"]

1. e4 {[%emt 0:00:00]} d6 {[%emt 0:00:00]} 2. d4 {[%emt 0:00:05]} Nf6 {[%emt 0:00:00]} 3. Nc3 {[%emt 0:00:12]} Nbd7 {[%emt 0:00:19]} 4. Bc4 {[%emt 0:02:06]} e5 {[%emt 0:01:38]} 5. Nf3 {[%emt 0:01:22]} Be7 {[%emt 0:00:19]} 6. O-O {[%emt 0:02:33]} c6 {[%emt 0:00:26]} 7. a4 {[%emt 0:00:46]} Qc7 {[%emt 0:00:50]} 8. Re1 {[%emt 0:13:29]} a5 {[%emt 0:05:41]} 9. b3 {[%emt 0:08:17]} Nf8 {[%emt 0:06:13]} 10. Ng5 {[%emt 0:12:42]} Ne6 {[%emt 0:07:21]} 11. Nxe6 {[%emt 0:04:03]} Bxe6 {[%emt 0:00:52]} 12. Bxe6 {[%emt 0:00:10]} fxe6 {[%emt 0:00:06]} 13. dxe5 {[%emt 0:00:47]} dxe5 {[%emt 0:00:06]} 14. Qe2 {[%emt 0:08:49]} Bb4 {[%emt 0:06:33]} 15. Qc4 {[%emt 0:02:57]} Qf7 {[%emt 0:24:35]} 16. Re2 {[%emt 0:15:28]} O-O {[%emt 0:01:12]} 17. Na2 {[%emt 0:06:34]} b5 {[%emt 0:26:08]} 18. Qxc6 {[%emt 0:06:54]} Rac8 {[%emt 0:01:06]} 19. Qxb5 {[%emt 0:01:46]} Nxe4 {[%emt 0:06:15]} 20. Be3 {[%emt 0:02:20]} Bc3 {[%emt 0:02:14]} 21. Rf1 {[%emt 0:01:05]} Rfd8 {[%emt 0:00:55]} 22. Bb6 {[%emt 0:01:30]} Rd5 {[%emt 0:00:50]} 23. Qa6 {[%emt 0:00:50]} Nd6 {[%emt 0:01:26]} 24. Nxc3 {[%emt 0:00:50]} Rxc3 {[%emt 0:00:05]} 25. Bxa5 {[%emt 0:00:28]} Rc8 {[%emt 0:01:52]} 26. c4 {[%emt 0:00:49]} Rd3 {[%emt 0:00:12]} 27. c5 {[%emt 0:00:32]} Rxc5 {[%emt 0:01:42]} 28. Qxd3 {[%emt 0:00:12]} 1-0